{"text_format":"3","workbook":"xlsx","n_sheets":3,"sheets":["Начало","Бюджетное кольцо","Данные"],"not_rendered":{"charts":1,"defined_names":5},"read":"whole","date_system":"1900"}

{"sheet":"Начало","index":0,"n_rows":7,"n_cols":2,"rows_kept":7}
[null,"Об этом шаблоне"]
[null,"Отслеживайте свои месячные расходы и сбережения с помощью этого шаблона."]
[null,"Введите в таблице сведения о расходах и месячный доход, чтобы вычислить сбережения."]
[null,"Кольцевая диаграмма, иллюстрирующая расходы и сбережения, обновляется автоматически."]
[null,"Примечание."]
[null,"В столбце A листа \"Колесо бюджета\" содержатся дополнительные инструкции. Их текст намерено скрыт. Чтобы удалить этот текст, выделите столбец A и нажмите клавишу DELETE. Чтобы отобразить текст, выделите столбец A и измените цвет шрифта."]
[null,"Чтобы получить дополнительные сведения о конкретной таблице, щелкните в ней ячейку, нажмите клавиши SHIFT+F10 и выберите пункт «Таблица», а затем — «Замещающий текст»."]

{"sheet":"Бюджетное кольцо","index":1,"n_rows":23,"n_cols":7,"rows_kept":23,"merged":[[0,1,0,2],[0,3,0,6]]}
[null,"Бюджетное кольцо",null,"Заполните таблицу в этом шаблоне. Диаграмма отобразит месячные расходы относительно вашего месячного дохода. В ней также будут рассчитаны процентные значения, демонстрирующие размер ваших сбережений."]
[null,"Месячный \nдоход",{"$nulls":4},"Сбережения \nСумма"]
[null,{"v":5738,"d":"5,738 ₽"},{"$nulls":4},{"$f":"Сбережения","v":{"v":2777,"d":"2,777 ₽"}}]
[{"$nulls":6},"Значение вычисляется \nавтоматически"]
[]
[null,"Расходы","Категория","Сумма","Периодичность","Месячная сумма","% общей суммы"]
[null,"Страхование","Транспорт",{"v":300,"d":"300 ₽"},"Каждые 6 месяцев",{"$f":"IF(Расходы[[#This Row],[Сумма]]>0,IF(Расходы[[#This Row],[Периодичность]]<>\"\",ROUND(IF(Расходы[[#This Row],[Периодичность]]=\"Ежемесячно\",Расходы[Сумма],IF(Расходы[[#This Row],[Периодичность]]=\"Еженедельно\",Расходы[[#This Row],[Сумма]]*4,IF(Расходы[[#This Row],[Периодичность]]=\"Ежеквартально\",Расходы[[#This Row],[Сумма]]/3,IF(Расходы[[#This Row],[Периодичность]]=\"Каждые 6 месяцев\",Расходы[[#This Row],[Сумма]]/6,IF(Расходы[[#This Row],[Периодичность]]=\"За год\",Расходы[[#This Row],[Сумма]]/12,IF(Расходы[[#This Row],[Периодичность]]=\"Каждые 2 недели\",Расходы[[#This Row],[Сумма]]*2,IF(Расходы[[#This Row],[Периодичность]]=\"Каждые 2 месяца\",Расходы[[#This Row],[Сумма]]/2,\"\"))))))),0),\"\"),\"\")","v":{"v":50,"d":"50 ₽"}},{"$f":"IF(Расходы[[#This Row],[Месячная сумма]]<>\"\",Расходы[[#This Row],[Месячная сумма]]/Доходы,\"\")","v":{"v":0.00871383757406762,"d":"1%"}}]
[null,"Газ","Транспорт",{"v":25,"d":"25 ₽"},"Еженедельно",{"$f":"IF(Расходы[[#This Row],[Сумма]]>0,IF(Расходы[[#This Row],[Периодичность]]<>\"\",ROUND(IF(Расходы[[#This Row],[Периодичность]]=\"Ежемесячно\",Расходы[Сумма],IF(Расходы[[#This Row],[Периодичность]]=\"Еженедельно\",Расходы[[#This Row],[Сумма]]*4,IF(Расходы[[#This Row],[Периодичность]]=\"Ежеквартально\",Расходы[[#This Row],[Сумма]]/3,IF(Расходы[[#This Row],[Периодичность]]=\"Каждые 6 месяцев\",Расходы[[#This Row],[Сумма]]/6,IF(Расходы[[#This Row],[Периодичность]]=\"За год\",Расходы[[#This Row],[Сумма]]/12,IF(Расходы[[#This Row],[Периодичность]]=\"Каждые 2 недели\",Расходы[[#This Row],[Сумма]]*2,IF(Расходы[[#This Row],[Периодичность]]=\"Каждые 2 месяца\",Расходы[[#This Row],[Сумма]]/2,\"\"))))))),0),\"\"),\"\")","v":{"v":100,"d":"100 ₽"}},{"$f":"IF(Расходы[[#This Row],[Месячная сумма]]<>\"\",Расходы[[#This Row],[Месячная сумма]]/Доходы,\"\")","v":{"v":0.01742767514813524,"d":"2%"}}]
[null,"Платеж за автомобиль","Транспорт",{"v":200,"d":"200 ₽"},"Ежемесячно",{"$f":"IF(Расходы[[#This Row],[Сумма]]>0,IF(Расходы[[#This Row],[Периодичность]]<>\"\",ROUND(IF(Расходы[[#This Row],[Периодичность]]=\"Ежемесячно\",Расходы[Сумма],IF(Расходы[[#This Row],[Периодичность]]=\"Еженедельно\",Расходы[[#This Row],[Сумма]]*4,IF(Расходы[[#This Row],[Периодичность]]=\"Ежеквартально\",Расходы[[#This Row],[Сумма]]/3,IF(Расходы[[#This Row],[Периодичность]]=\"Каждые 6 месяцев\",Расходы[[#This Row],[Сумма]]/6,IF(Расходы[[#This Row],[Периодичность]]=\"За год\",Расходы[[#This Row],[Сумма]]/12,IF(Расходы[[#This Row],[Периодичность]]=\"Каждые 2 недели\",Расходы[[#This Row],[Сумма]]*2,IF(Расходы[[#This Row],[Периодичность]]=\"Каждые 2 месяца\",Расходы[[#This Row],[Сумма]]/2,\"\"))))))),0),\"\"),\"\")","v":{"v":200,"d":"200 ₽"}},{"$f":"IF(Расходы[[#This Row],[Месячная сумма]]<>\"\",Расходы[[#This Row],[Месячная сумма]]/Доходы,\"\")","v":{"v":0.03485535029627048,"d":"3%"}}]
[null,"Ипотека","Дом",{"v":1600,"d":"1,600 ₽"},"Ежемесячно",{"$f":"IF(Расходы[[#This Row],[Сумма]]>0,IF(Расходы[[#This Row],[Периодичность]]<>\"\",ROUND(IF(Расходы[[#This Row],[Периодичность]]=\"Ежемесячно\",Расходы[Сумма],IF(Расходы[[#This Row],[Периодичность]]=\"Еженедельно\",Расходы[[#This Row],[Сумма]]*4,IF(Расходы[[#This Row],[Периодичность]]=\"Ежеквартально\",Расходы[[#This Row],[Сумма]]/3,IF(Расходы[[#This Row],[Периодичность]]=\"Каждые 6 месяцев\",Расходы[[#This Row],[Сумма]]/6,IF(Расходы[[#This Row],[Периодичность]]=\"За год\",Расходы[[#This Row],[Сумма]]/12,IF(Расходы[[#This Row],[Периодичность]]=\"Каждые 2 недели\",Расходы[[#This Row],[Сумма]]*2,IF(Расходы[[#This Row],[Периодичность]]=\"Каждые 2 месяца\",Расходы[[#This Row],[Сумма]]/2,\"\"))))))),0),\"\"),\"\")","v":{"v":1600,"d":"1,600 ₽"}},{"$f":"IF(Расходы[[#This Row],[Месячная сумма]]<>\"\",Расходы[[#This Row],[Месячная сумма]]/Доходы,\"\")","v":{"v":0.27884280237016384,"d":"28%"}}]
[null,"Кабельное ТВ","Дом",{"v":60,"d":"60 ₽"},"Ежемесячно",{"$f":"IF(Расходы[[#This Row],[Сумма]]>0,IF(Расходы[[#This Row],[Периодичность]]<>\"\",ROUND(IF(Расходы[[#This Row],[Периодичность]]=\"Ежемесячно\",Расходы[Сумма],IF(Расходы[[#This Row],[Периодичность]]=\"Еженедельно\",Расходы[[#This Row],[Сумма]]*4,IF(Расходы[[#This Row],[Периодичность]]=\"Ежеквартально\",Расходы[[#This Row],[Сумма]]/3,IF(Расходы[[#This Row],[Периодичность]]=\"Каждые 6 месяцев\",Расходы[[#This Row],[Сумма]]/6,IF(Расходы[[#This Row],[Периодичность]]=\"За год\",Расходы[[#This Row],[Сумма]]/12,IF(Расходы[[#This Row],[Периодичность]]=\"Каждые 2 недели\",Расходы[[#This Row],[Сумма]]*2,IF(Расходы[[#This Row],[Периодичность]]=\"Каждые 2 месяца\",Расходы[[#This Row],[Сумма]]/2,\"\"))))))),0),\"\"),\"\")","v":{"v":60,"d":"60 ₽"}},{"$f":"IF(Расходы[[#This Row],[Месячная сумма]]<>\"\",Расходы[[#This Row],[Месячная сумма]]/Доходы,\"\")","v":{"v":0.010456605088881143,"d":"1%"}}]
[null,"Вечер кино","Развлечения",{"v":70,"d":"70 ₽"},"Ежемесячно",{"$f":"IF(Расходы[[#This Row],[Сумма]]>0,IF(Расходы[[#This Row],[Периодичность]]<>\"\",ROUND(IF(Расходы[[#This Row],[Периодичность]]=\"Ежемесячно\",Расходы[Сумма],IF(Расходы[[#This Row],[Периодичность]]=\"Еженедельно\",Расходы[[#This Row],[Сумма]]*4,IF(Расходы[[#This Row],[Периодичность]]=\"Ежеквартально\",Расходы[[#This Row],[Сумма]]/3,IF(Расходы[[#This Row],[Периодичность]]=\"Каждые 6 месяцев\",Расходы[[#This Row],[Сумма]]/6,IF(Расходы[[#This Row],[Периодичность]]=\"За год\",Расходы[[#This Row],[Сумма]]/12,IF(Расходы[[#This Row],[Периодичность]]=\"Каждые 2 недели\",Расходы[[#This Row],[Сумма]]*2,IF(Расходы[[#This Row],[Периодичность]]=\"Каждые 2 месяца\",Расходы[[#This Row],[Сумма]]/2,\"\"))))))),0),\"\"),\"\")","v":{"v":70,"d":"70 ₽"}},{"$f":"IF(Расходы[[#This Row],[Месячная сумма]]<>\"\",Расходы[[#This Row],[Месячная сумма]]/Доходы,\"\")","v":{"v":0.012199372603694667,"d":"1%"}}]
[null,"Полукеды","Проч.",{"v":300,"d":"300 ₽"},"За год",{"$f":"IF(Расходы[[#This Row],[Сумма]]>0,IF(Расходы[[#This Row],[Периодичность]]<>\"\",ROUND(IF(Расходы[[#This Row],[Периодичность]]=\"Ежемесячно\",Расходы[Сумма],IF(Расходы[[#This Row],[Периодичность]]=\"Еженедельно\",Расходы[[#This Row],[Сумма]]*4,IF(Расходы[[#This Row],[Периодичность]]=\"Ежеквартально\",Расходы[[#This Row],[Сумма]]/3,IF(Расходы[[#This Row],[Периодичность]]=\"Каждые 6 месяцев\",Расходы[[#This Row],[Сумма]]/6,IF(Расходы[[#This Row],[Периодичность]]=\"За год\",Расходы[[#This Row],[Сумма]]/12,IF(Расходы[[#This Row],[Периодичность]]=\"Каждые 2 недели\",Расходы[[#This Row],[Сумма]]*2,IF(Расходы[[#This Row],[Периодичность]]=\"Каждые 2 месяца\",Расходы[[#This Row],[Сумма]]/2,\"\"))))))),0),\"\"),\"\")","v":{"v":25,"d":"25 ₽"}},{"$f":"IF(Расходы[[#This Row],[Месячная сумма]]<>\"\",Расходы[[#This Row],[Месячная сумма]]/Доходы,\"\")","v":{"v":0.00435691878703381,"d":"0%"}}]
[null,"Корм для собаки","Проч.",{"v":60,"d":"60 ₽"},"Ежемесячно",{"$f":"IF(Расходы[[#This Row],[Сумма]]>0,IF(Расходы[[#This Row],[Периодичность]]<>\"\",ROUND(IF(Расходы[[#This Row],[Периодичность]]=\"Ежемесячно\",Расходы[Сумма],IF(Расходы[[#This Row],[Периодичность]]=\"Еженедельно\",Расходы[[#This Row],[Сумма]]*4,IF(Расходы[[#This Row],[Периодичность]]=\"Ежеквартально\",Расходы[[#This Row],[Сумма]]/3,IF(Расходы[[#This Row],[Периодичность]]=\"Каждые 6 месяцев\",Расходы[[#This Row],[Сумма]]/6,IF(Расходы[[#This Row],[Периодичность]]=\"За год\",Расходы[[#This Row],[Сумма]]/12,IF(Расходы[[#This Row],[Периодичность]]=\"Каждые 2 недели\",Расходы[[#This Row],[Сумма]]*2,IF(Расходы[[#This Row],[Периодичность]]=\"Каждые 2 месяца\",Расходы[[#This Row],[Сумма]]/2,\"\"))))))),0),\"\"),\"\")","v":{"v":60,"d":"60 ₽"}},{"$f":"IF(Расходы[[#This Row],[Месячная сумма]]<>\"\",Расходы[[#This Row],[Месячная сумма]]/Доходы,\"\")","v":{"v":0.010456605088881143,"d":"1%"}}]
[null,"Страхование домашнего питомца","Проч.",{"v":70,"d":"70 ₽"},"За год",{"$f":"IF(Расходы[[#This Row],[Сумма]]>0,IF(Расходы[[#This Row],[Периодичность]]<>\"\",ROUND(IF(Расходы[[#This Row],[Периодичность]]=\"Ежемесячно\",Расходы[Сумма],IF(Расходы[[#This Row],[Периодичность]]=\"Еженедельно\",Расходы[[#This Row],[Сумма]]*4,IF(Расходы[[#This Row],[Периодичность]]=\"Ежеквартально\",Расходы[[#This Row],[Сумма]]/3,IF(Расходы[[#This Row],[Периодичность]]=\"Каждые 6 месяцев\",Расходы[[#This Row],[Сумма]]/6,IF(Расходы[[#This Row],[Периодичность]]=\"За год\",Расходы[[#This Row],[Сумма]]/12,IF(Расходы[[#This Row],[Периодичность]]=\"Каждые 2 недели\",Расходы[[#This Row],[Сумма]]*2,IF(Расходы[[#This Row],[Периодичность]]=\"Каждые 2 месяца\",Расходы[[#This Row],[Сумма]]/2,\"\"))))))),0),\"\"),\"\")","v":{"v":6,"d":"6 ₽"}},{"$f":"IF(Расходы[[#This Row],[Месячная сумма]]<>\"\",Расходы[[#This Row],[Месячная сумма]]/Доходы,\"\")","v":{"v":1.0456605088881143E-3,"d":"0%"}}]
[null,"Продовольственные товары","Еда",{"v":100,"d":"100 ₽"},"Еженедельно",{"$f":"IF(Расходы[[#This Row],[Сумма]]>0,IF(Расходы[[#This Row],[Периодичность]]<>\"\",ROUND(IF(Расходы[[#This Row],[Периодичность]]=\"Ежемесячно\",Расходы[Сумма],IF(Расходы[[#This Row],[Периодичность]]=\"Еженедельно\",Расходы[[#This Row],[Сумма]]*4,IF(Расходы[[#This Row],[Периодичность]]=\"Ежеквартально\",Расходы[[#This Row],[Сумма]]/3,IF(Расходы[[#This Row],[Периодичность]]=\"Каждые 6 месяцев\",Расходы[[#This Row],[Сумма]]/6,IF(Расходы[[#This Row],[Периодичность]]=\"За год\",Расходы[[#This Row],[Сумма]]/12,IF(Расходы[[#This Row],[Периодичность]]=\"Каждые 2 недели\",Расходы[[#This Row],[Сумма]]*2,IF(Расходы[[#This Row],[Периодичность]]=\"Каждые 2 месяца\",Расходы[[#This Row],[Сумма]]/2,\"\"))))))),0),\"\"),\"\")","v":{"v":400,"d":"400 ₽"}},{"$f":"IF(Расходы[[#This Row],[Месячная сумма]]<>\"\",Расходы[[#This Row],[Месячная сумма]]/Доходы,\"\")","v":{"v":0.06971070059254096,"d":"7%"}}]
[null,"Кофе","Еда",{"v":25,"d":"25 ₽"},"Еженедельно",{"$f":"IF(Расходы[[#This Row],[Сумма]]>0,IF(Расходы[[#This Row],[Периодичность]]<>\"\",ROUND(IF(Расходы[[#This Row],[Периодичность]]=\"Ежемесячно\",Расходы[Сумма],IF(Расходы[[#This Row],[Периодичность]]=\"Еженедельно\",Расходы[[#This Row],[Сумма]]*4,IF(Расходы[[#This Row],[Периодичность]]=\"Ежеквартально\",Расходы[[#This Row],[Сумма]]/3,IF(Расходы[[#This Row],[Периодичность]]=\"Каждые 6 месяцев\",Расходы[[#This Row],[Сумма]]/6,IF(Расходы[[#This Row],[Периодичность]]=\"За год\",Расходы[[#This Row],[Сумма]]/12,IF(Расходы[[#This Row],[Периодичность]]=\"Каждые 2 недели\",Расходы[[#This Row],[Сумма]]*2,IF(Расходы[[#This Row],[Периодичность]]=\"Каждые 2 месяца\",Расходы[[#This Row],[Сумма]]/2,\"\"))))))),0),\"\"),\"\")","v":{"v":100,"d":"100 ₽"}},{"$f":"IF(Расходы[[#This Row],[Месячная сумма]]<>\"\",Расходы[[#This Row],[Месячная сумма]]/Доходы,\"\")","v":{"v":0.01742767514813524,"d":"2%"}}]
[null,"Альпинистское снаряжение","Развлечения",{"v":170,"d":"170 ₽"},"За год",{"$f":"IF(Расходы[[#This Row],[Сумма]]>0,IF(Расходы[[#This Row],[Периодичность]]<>\"\",ROUND(IF(Расходы[[#This Row],[Периодичность]]=\"Ежемесячно\",Расходы[Сумма],IF(Расходы[[#This Row],[Периодичность]]=\"Еженедельно\",Расходы[[#This Row],[Сумма]]*4,IF(Расходы[[#This Row],[Периодичность]]=\"Ежеквартально\",Расходы[[#This Row],[Сумма]]/3,IF(Расходы[[#This Row],[Периодичность]]=\"Каждые 6 месяцев\",Расходы[[#This Row],[Сумма]]/6,IF(Расходы[[#This Row],[Периодичность]]=\"За год\",Расходы[[#This Row],[Сумма]]/12,IF(Расходы[[#This Row],[Периодичность]]=\"Каждые 2 недели\",Расходы[[#This Row],[Сумма]]*2,IF(Расходы[[#This Row],[Периодичность]]=\"Каждые 2 месяца\",Расходы[[#This Row],[Сумма]]/2,\"\"))))))),0),\"\"),\"\")","v":{"v":14,"d":"14 ₽"}},{"$f":"IF(Расходы[[#This Row],[Месячная сумма]]<>\"\",Расходы[[#This Row],[Месячная сумма]]/Доходы,\"\")","v":{"v":2.4398745207389336E-3,"d":"0%"}}]
[null,"Абонемент в тренажерный зал","Проч.",{"v":60,"d":"60 ₽"},"Ежемесячно",{"$f":"IF(Расходы[[#This Row],[Сумма]]>0,IF(Расходы[[#This Row],[Периодичность]]<>\"\",ROUND(IF(Расходы[[#This Row],[Периодичность]]=\"Ежемесячно\",Расходы[Сумма],IF(Расходы[[#This Row],[Периодичность]]=\"Еженедельно\",Расходы[[#This Row],[Сумма]]*4,IF(Расходы[[#This Row],[Периодичность]]=\"Ежеквартально\",Расходы[[#This Row],[Сумма]]/3,IF(Расходы[[#This Row],[Периодичность]]=\"Каждые 6 месяцев\",Расходы[[#This Row],[Сумма]]/6,IF(Расходы[[#This Row],[Периодичность]]=\"За год\",Расходы[[#This Row],[Сумма]]/12,IF(Расходы[[#This Row],[Периодичность]]=\"Каждые 2 недели\",Расходы[[#This Row],[Сумма]]*2,IF(Расходы[[#This Row],[Периодичность]]=\"Каждые 2 месяца\",Расходы[[#This Row],[Сумма]]/2,\"\"))))))),0),\"\"),\"\")","v":{"v":60,"d":"60 ₽"}},{"$f":"IF(Расходы[[#This Row],[Месячная сумма]]<>\"\",Расходы[[#This Row],[Месячная сумма]]/Доходы,\"\")","v":{"v":0.010456605088881143,"d":"1%"}}]
[null,"Наушники","Развлечения",{"v":50,"d":"50 ₽"},"За год",{"$f":"IF(Расходы[[#This Row],[Сумма]]>0,IF(Расходы[[#This Row],[Периодичность]]<>\"\",ROUND(IF(Расходы[[#This Row],[Периодичность]]=\"Ежемесячно\",Расходы[Сумма],IF(Расходы[[#This Row],[Периодичность]]=\"Еженедельно\",Расходы[[#This Row],[Сумма]]*4,IF(Расходы[[#This Row],[Периодичность]]=\"Ежеквартально\",Расходы[[#This Row],[Сумма]]/3,IF(Расходы[[#This Row],[Периодичность]]=\"Каждые 6 месяцев\",Расходы[[#This Row],[Сумма]]/6,IF(Расходы[[#This Row],[Периодичность]]=\"За год\",Расходы[[#This Row],[Сумма]]/12,IF(Расходы[[#This Row],[Периодичность]]=\"Каждые 2 недели\",Расходы[[#This Row],[Сумма]]*2,IF(Расходы[[#This Row],[Периодичность]]=\"Каждые 2 месяца\",Расходы[[#This Row],[Сумма]]/2,\"\"))))))),0),\"\"),\"\")","v":{"v":4,"d":"4 ₽"}},{"$f":"IF(Расходы[[#This Row],[Месячная сумма]]<>\"\",Расходы[[#This Row],[Месячная сумма]]/Доходы,\"\")","v":{"v":6.9710700592540956E-4,"d":"0%"}}]
[null,"Стрижка","Проч.",{"v":70,"d":"70 ₽"},"Ежемесячно",{"$f":"IF(Расходы[[#This Row],[Сумма]]>0,IF(Расходы[[#This Row],[Периодичность]]<>\"\",ROUND(IF(Расходы[[#This Row],[Периодичность]]=\"Ежемесячно\",Расходы[Сумма],IF(Расходы[[#This Row],[Периодичность]]=\"Еженедельно\",Расходы[[#This Row],[Сумма]]*4,IF(Расходы[[#This Row],[Периодичность]]=\"Ежеквартально\",Расходы[[#This Row],[Сумма]]/3,IF(Расходы[[#This Row],[Периодичность]]=\"Каждые 6 месяцев\",Расходы[[#This Row],[Сумма]]/6,IF(Расходы[[#This Row],[Периодичность]]=\"За год\",Расходы[[#This Row],[Сумма]]/12,IF(Расходы[[#This Row],[Периодичность]]=\"Каждые 2 недели\",Расходы[[#This Row],[Сумма]]*2,IF(Расходы[[#This Row],[Периодичность]]=\"Каждые 2 месяца\",Расходы[[#This Row],[Сумма]]/2,\"\"))))))),0),\"\"),\"\")","v":{"v":70,"d":"70 ₽"}},{"$f":"IF(Расходы[[#This Row],[Месячная сумма]]<>\"\",Расходы[[#This Row],[Месячная сумма]]/Доходы,\"\")","v":{"v":0.012199372603694667,"d":"1%"}}]
[null,"Видеоигры","Развлечения",{"v":100,"d":"100 ₽"},"Ежемесячно",{"$f":"IF(Расходы[[#This Row],[Сумма]]>0,IF(Расходы[[#This Row],[Периодичность]]<>\"\",ROUND(IF(Расходы[[#This Row],[Периодичность]]=\"Ежемесячно\",Расходы[Сумма],IF(Расходы[[#This Row],[Периодичность]]=\"Еженедельно\",Расходы[[#This Row],[Сумма]]*4,IF(Расходы[[#This Row],[Периодичность]]=\"Ежеквартально\",Расходы[[#This Row],[Сумма]]/3,IF(Расходы[[#This Row],[Периодичность]]=\"Каждые 6 месяцев\",Расходы[[#This Row],[Сумма]]/6,IF(Расходы[[#This Row],[Периодичность]]=\"За год\",Расходы[[#This Row],[Сумма]]/12,IF(Расходы[[#This Row],[Периодичность]]=\"Каждые 2 недели\",Расходы[[#This Row],[Сумма]]*2,IF(Расходы[[#This Row],[Периодичность]]=\"Каждые 2 месяца\",Расходы[[#This Row],[Сумма]]/2,\"\"))))))),0),\"\"),\"\")","v":{"v":100,"d":"100 ₽"}},{"$f":"IF(Расходы[[#This Row],[Месячная сумма]]<>\"\",Расходы[[#This Row],[Месячная сумма]]/Доходы,\"\")","v":{"v":0.01742767514813524,"d":"2%"}}]
[null,"Одежда","Проч.",{"v":500,"d":"500 ₽"},"За год",{"$f":"IF(Расходы[[#This Row],[Сумма]]>0,IF(Расходы[[#This Row],[Периодичность]]<>\"\",ROUND(IF(Расходы[[#This Row],[Периодичность]]=\"Ежемесячно\",Расходы[Сумма],IF(Расходы[[#This Row],[Периодичность]]=\"Еженедельно\",Расходы[[#This Row],[Сумма]]*4,IF(Расходы[[#This Row],[Периодичность]]=\"Ежеквартально\",Расходы[[#This Row],[Сумма]]/3,IF(Расходы[[#This Row],[Периодичность]]=\"Каждые 6 месяцев\",Расходы[[#This Row],[Сумма]]/6,IF(Расходы[[#This Row],[Периодичность]]=\"За год\",Расходы[[#This Row],[Сумма]]/12,IF(Расходы[[#This Row],[Периодичность]]=\"Каждые 2 недели\",Расходы[[#This Row],[Сумма]]*2,IF(Расходы[[#This Row],[Периодичность]]=\"Каждые 2 месяца\",Расходы[[#This Row],[Сумма]]/2,\"\"))))))),0),\"\"),\"\")","v":{"v":42,"d":"42 ₽"}},{"$f":"IF(Расходы[[#This Row],[Месячная сумма]]<>\"\",Расходы[[#This Row],[Месячная сумма]]/Доходы,\"\")","v":{"v":7.3196235622168E-3,"d":"1%"}}]

{"sheet":"Данные","index":2,"n_rows":10,"n_cols":5,"rows_kept":10,"hidden":true}
["Этот лист должен оставаться скрытым"]
["Категории","Сумма по категориям","Процент от суммы","Периодичность","Сбережения"]
["Дом",{"$f":"IF(SUMIF(Расходы[Категория],\"Дом\",Расходы[Месячная сумма])>0,SUMIF(Расходы[Категория],\"Дом\",Расходы[Месячная сумма]),NA())","v":{"v":1660,"d":"1,660 ₽"}},{"$f":"IF(B3>0,B3/Доходы,\"\")","v":{"v":0.289299407459045,"d":"29%"}},"Еженедельно",{"$f":"Доходы-SUM(Расходы[Месячная сумма])","v":{"v":2777,"d":"2,777 ₽"}}]
["Развлечения",{"$f":"IF(SUMIF(Расходы[Категория],\"Развлечения\",Расходы[Месячная сумма])>0,SUMIF(Расходы[Категория],\"Развлечения\",Расходы[Месячная сумма]),NA())","v":{"v":188,"d":"188 ₽"}},{"v":0.03276402927849425,"d":"3%"},"Ежемесячно"]
["Транспорт",{"$f":"IF(SUMIF(Расходы[Категория],\"Транспорт\",Расходы[Месячная сумма])>0,SUMIF(Расходы[Категория],\"Транспорт\",Расходы[Месячная сумма]),NA())","v":{"v":350,"d":"350 ₽"}},{"v":0.06099686301847333,"d":"6%"},"Ежеквартально"]
["Еда",{"$f":"IF(SUMIF(Расходы[Категория],\"Еда\",Расходы[Месячная сумма])>0,SUMIF(Расходы[Категория],\"Еда\",Расходы[Месячная сумма]),NA())","v":{"v":500,"d":"500 ₽"}},{"v":0.08713837574067619,"d":"9%"},"Каждые 6 месяцев"]
["Проч.",{"$f":"IF(SUMIF(Расходы[Категория],\"Проч.\",Расходы[Месячная сумма])>0,SUMIF(Расходы[Категория],\"Проч.\",Расходы[Месячная сумма]),NA())","v":{"v":263,"d":"263 ₽"}},{"v":0.04583478563959568,"d":"5%"},"За год"]
["Сбережения",{"$f":"IF(E3>0,E3,NA())","v":{"v":2777,"d":"2,777 ₽"}},{"v":0.4839665388637156,"d":"48%"},"Каждые 2 недели"]
[{"$nulls":3},"Каждые 2 месяца"]
[null,"ИТОГ:",{"$f":"SUM(C3:C8)","v":{"v":1,"d":"100%"}}]